Cogmind - Beta 15 @@@ ROGUE MODE // 2025.08.27 @ 20:00:55 Player: shapeshifter Result: Destroyed by G-67 Veteran with Plasma Rifle Performance ------------- Evolutions (7) 3500 Regions Visited (26) 5200 Robots Destroyed (174) 870 Value Destroyed (7451) 7451 Prototype IDs (31) 620 Alien Tech Used (1) 200 Bonus (4333) 4333 TOTAL SCORE: 22174 Bonus ------- High Alert Combat Kills 337 Follower Combat Kills 2862 Entered Garrisons 600 Entered DSFs 500 Aligned with FarCom 300 Acquired ECA 300 A7 Reached Mainframe 300 Met R17 at Cetus 500 Friendly Fire -1366 Cogmind --------- Core Integrity 0/1300 Matter 185/300 Energy 98/100 System Corruption 25% Temperature Cool (12) Movement Core (50) Location -3/Research Parts ------- > --- POWER (3) -------- (None) > --- PROPULSION (6) --- (None) > --- UTILITY (9) ------ Improved Signal Interpreter > --- WEAPON (4) ------- (None) > --- INVENTORY (5) ---- Encrypted Comm Array Hacking Drone Bay (1/1) Long-range Missile Launcher Plasma Cutter Enhanced Force Lance Peak State ------------ > --- POWER ------------ Antimatter Reactor Particle Reactor Quantum Reactor > --- PROPULSION ------- Centrium Heavy Treads Centrium Heavy Treads > --- UTILITY ---------- Advanced Cryofiber Web Huge Storage Unit Cargo Storage Unit Energy Well Improved Signal Interpreter Centrium Medium Armor Plating Centrium Medium Armor Plating Advanced Hacking Suite > --- WEAPON ----------- Hypervelocity Gauss Rifle Hypervelocity Gauss Rifle Advanced KE Penetrator Advanced KE Penetrator > --- INVENTORY -------- Improved Heavy Treads Improved Heavy Treads Improved Heavy Treads Biometal Medium Treads Biometal Medium Treads Centrium Heavy Treads Centrium Heavy Treads Advanced Heat Sink Advanced Heat Sink Improved Sensor Array Encrypted Comm Array Improved Weapon Cycler Centrium Medium Armor Plating Relay Coupler [Grunt] Hacking Drone Bay Advanced Variable Charge Gun Advanced Variable Charge Gun Advanced Variable Charge Gun Quantum Rifle Heavy Rocket Launcher Heavy Rocket Launcher Long-range Missile Launcher Long-range Missile Launcher Plasma Cutter [Rating: 147] Favorites ----------- Power Micro Nuclear Core Engine Ion Engine Power Core Micro Nuclear Core Reactor Particle Reactor Propulsion Improved Medium Treads Treads Improved Medium Treads Leg Myomer Leg Wheel Armored Huge Wheel Hover Unit Improved Hover Unit Utility Improved Signal Interpreter Device Advanced Heat Sink Storage High-capacity Storage Unit Processor Improved Signal Interpreter Hackware Makeshift System Shield Protection Centrium Medium Armor Plating Weapon Lightning Gun Energy Gun Lightning Gun Energy Cannon EM Pulse Cannon Ballistic Gun Advanced KE Penetrator Ballistic Cannon Advanced Assault Cannon Launcher Heavy Rocket Launcher Special Weapon Plasma Cutter Slashing Weapon Phasing Sabre Piercing Weapon Makeshift Spear Build | -11 -10 -10 -9 -9 -9 -8 -8 -8 -8 -7 -7 -6 -6 -6 -6 -5 -5 -5 -5 -5 -5 -5 -4 -4 -4 -3 ------- Run | Yrd Mat Min Mat Min Exi Min Mat Gar Mat Fac DSF Fac Low Low Zio Pro Fac Gar Ext Cet Arc Hub Fac Gar Fac Res Slots Evolved 14 | . . . 2 . . . 2 . . 2 . 2 . . . . 2 . . . . . 2 . . 2 Power 2 | . . . . . . . . . . . . . . . . . . . . . . . 2 . . . Propulsion 4 | . . . . . . . . . . 1 . 1 . . . . . . . . . . . . . 2 Utility 6 | . . . 1 . . . 1 . . 1 . 1 . . . . 2 . . . . . . . . . Weapon 2 | . . . 1 . . . 1 . . . . . . . . . . . . . . . . . . . Parts Attached 180 | 8 3 . 8 3 4 . 5 10 18 . 10 5 6 . 5 . 8 9 33 19 1 6 4 6 2 7 Power 18 | 1 . . 1 . . . . 1 2 . . . . . . . 1 1 4 3 . . 1 1 . 2 Engine 5 | 1 . . 1 . . . . . 1 . . . . . . . . . 2 . . . . . . . Core 7 | . . . . . . . . 1 1 . . . . . . . 1 1 2 . . . . . . 1 Reactor 6 | . . . . . . . . . . . . . . . . . . . . 3 . . 1 1 . 1 Propulsion 44 | 2 . . 2 1 . . 3 2 5 . 3 2 . . . . . 5 11 4 . . . . 1 3 Treads 22 | 2 . . 2 1 . . . . 2 . 2 2 . . . . . . 3 4 . . . . 1 3 Leg 16 | . . . . . . . 1 2 . . 1 . . . . . . 4 8 . . . . . . . Wheel 3 | . . . . . . . 2 . . . . . . . . . . 1 . . . . . . . . Hover 3 | . . . . . . . . . 3 . . . . . . . . . . . . . . . . . Flight . | . . . . . . . . . . . . . . . . . . . . . . . . . . . Utility 54 | 2 1 . 2 . 1 . 1 . 5 . 4 2 4 . 3 . 6 1 9 4 1 2 3 3 . . Device 18 | 1 . . . . 1 . . . 1 . 2 . 2 . 2 . 1 . 3 . 1 1 1 2 . . Storage 8 | 1 1 . . . . . . . 1 . . . . . 1 . 1 1 . . . . 1 1 . . Processor 4 | . . . . . . . . . 1 . . . 1 . . . . . 1 1 . . . . . . Hackware 5 | . . . . . . . . . . . . 1 . . . . 1 . 2 . . . 1 . . . Protection 19 | . . . 2 . . . 1 . 2 . 2 1 1 . . . 3 . 3 3 . 1 . . . . Artifact . | . . . . . . . . . . . . . . . . . . . . . . . . . . . Weapon 64 | 3 2 . 3 2 3 . 1 7 6 . 3 1 2 . 2 . 1 2 9 8 . 4 . 2 1 2 Energy Gun 13 | 1 . . . . . . . 1 1 . 1 1 1 . . . . 1 1 3 . . . . 1 1 Energy Cannon 1 | . . . . . . . . . 1 . . . . . . . . . . . . . . . . . Ballistic Gun 29 | 2 2 . 3 2 3 . 1 2 4 . 1 . . . . . . . 1 5 . 2 . . . 1 Ballistic Cannon 4 | . . . . . . . . . . . . . . . 2 . 1 . 1 . . . . . . . Launcher 8 | . . . . . . . . 2 . . 1 . . . . . . 1 . . . 2 . 2 . . Special Weapon 2 | . . . . . . . . 2 . . . . . . . . . . . . . . . . . . Impact Weapon . | . . . . . . . . . . . . . . . . . . . . . . . . . . . Slashing Weapon 6 | . . . . . . . . . . . . . . . . . . . 6 . . . . . . . Piercing Weapon 1 | . . . . . . . . . . . . . 1 . . . . . . . . . . . . . Special Melee Weapon . | . . . . . . . . . . . . . . . . . . . . . . . . . . . Unidentified Prototypes 9 | . . . . . 1 . . . 1 . . . 1 . 1 . . . . 4 . . . 1 . . Corrupted Parts 9 | . . . . . . . . 1 . . . . . . . . . 2 . 6 . . . . . . System Corruption 31 | . . . . . . . . 5 . . . . . . . . . 11 . 15 . . . . . . Parts Lost 94 | . . . 5 4 . . 2 15 2 . 5 . . . . 1 . 15 15 . . 1 . 9 8 12 Power 9 | . . . 1 . . . 1 1 . . . . . . . . . 1 1 . . . . 1 2 1 Propulsion 29 | . . . . 2 . . 1 4 1 . 2 . . . . . . 4 8 . . . . . 2 5 Utility 21 | . . . 2 . . . . 1 . . 1 . . . . . . 5 4 . . 1 . 3 2 2 Weapon 35 | . . . 2 2 . . . 9 1 . 2 . . . . 1 . 5 2 . . . . 5 2 4 Highest Loss Streak 13 | . . . 4 3 . . 1 9 1 . 4 . . . . 1 . 13 10 . . 1 . 9 6 7 To Critical Strikes 2 | . . . 1 . . . . . . . . . . . . . . . . . . . . . . 1 Average Backups 19 | 3 7 8 9 13 13 11 11 7 15 20 25 35 37 35 33 32 25 14 16 17 16 16 18 23 20 12 Power . | . 1 1 . . . . . . . 1 1 1 2 2 2 2 1 . 1 1 2 1 . . . . Propulsion 2 | 1 2 2 3 4 2 2 2 . 2 2 2 4 6 6 3 2 2 . 2 . 2 2 3 6 5 2 Utility 6 | . 1 1 1 1 2 3 4 4 10 12 14 14 14 12 14 16 10 3 3 5 4 3 4 7 7 5 Weapon 6 | . 3 4 4 5 7 4 3 . 1 3 7 12 13 13 12 11 9 7 7 8 6 6 8 7 5 2 Tool/Special . | . . . . . . . . . . . . . . . . . . . . . . . . . . . Unused Backups 55 | . 2 . 1 2 1 . 1 1 2 1 3 8 2 . 5 . 6 . 2 3 . 1 . 6 3 5 Power 1 | . . . . . . . . . . . . . . . . . . . . . . . . 1 . . Propulsion 17 | . . . . 1 . . . 1 1 . . 3 . . 4 . 2 . 1 1 . 1 . . 2 . Utility 24 | . 2 . . . . . 1 . 1 . 3 4 2 . . . 3 . . . . . . 4 . 4 Weapon 12 | . . . 1 1 1 . . . . 1 . 1 . . 1 . 1 . 1 2 . . . 1 . 1 Tool/Special 1 | . . . . . . . . . . . . . . . . . . . . . . . . . 1 . Average Slot Usage (%) 72 | . 100 100 85 87 52 78 74 34 63 72 80 79 85 87 83 83 90 78 76 86 88 85 78 76 41 28 Engine 2 | . 14 14 8 11 11 11 6 . . . . . . . . . . . 2 1 . . . . . . Core 2 | . . . . . . . . 3 2 7 7 6 6 6 6 6 5 4 2 . . . . . . 1 Reactor 1 | . . . . . . . . . . . . . . . . . . . . 3 5 5 8 12 6 . Treads 14 | . 28 28 22 21 22 22 12 . 6 15 12 17 25 25 25 25 22 6 6 11 11 11 10 10 9 8 Leg 3 | . . . . . . . 3 7 7 . 6 3 . . . . . 11 13 1 . . . . . . Device 5 | . 14 14 5 . 4 1 . . 3 7 7 6 5 6 9 18 15 3 6 1 1 10 11 9 2 . Storage 8 | . 14 14 11 11 11 11 9 9 9 7 7 6 6 6 6 6 6 11 6 5 7 11 10 13 5 4 Processor 3 | . . . . . . . . . . . . . . 6 6 6 5 5 5 11 11 5 5 5 5 4 Hackware 3 | . . . . . . . . . . . . 3 6 6 4 . . 5 5 12 11 2 1 5 5 3 Protection 5 | . . . 5 11 . . 5 . 5 3 6 6 5 6 4 . 11 8 3 15 17 16 11 4 2 . Energy Gun 3 | . . . . . . . . 3 4 . 2 4 10 12 12 8 4 6 1 1 5 3 . . 1 4 Ballistic Gun 13 | . 28 28 33 32 3 33 36 5 21 30 24 20 15 12 8 6 5 1 . 14 16 16 20 14 . . Slashing Weapon 1 | . . . . . . . . . . . . . . . . . . . 17 1 . . . . . . Peak Build Rating 147 | 7 10 10 13 14 20 21 22 17 62 66 79 93 100 100 104 105 113 97 87 140 140 141 137 147 100 97 Average Rating 69 | 5 9 10 11 12 11 12 14 10 49 64 74 86 94 100 98 102 100 64 70 119 137 134 132 129 83 65 On Entrance 64 | . 7 10 10 13 7 20 21 14 13 62 66 79 93 100 100 104 101 77 61 87 140 134 129 127 99 68 Naked Turns . | . . . . . . . . . . . . . . . . . . . . . . . . . . . Heaviest Build 319 | 14 32 32 38 37 29 29 34 30 29 31 40 41 40 37 37 32 100 99 82 111 111 131 158 319 269 156 Greatest Support 160 | 40 40 40 43 43 40 40 40 26 40 40 40 100 100 100 100 100 100 100 85 160 160 160 160 160 160 160 Greatest Overweight (x) 9 | . . . . . . . 1 9 1 . 1 1 . . . . . 3 1 1 . . . 1 1 1 Average Overweight (x) . | . . . . . . . . 2 . . . . . . . . . . . . . . . . . . Largest Inventory Capacity 40 | 8 15 15 15 15 15 15 15 15 40 40 40 40 40 40 40 40 40 40 20 20 20 20 25 30 30 30 Average Capacity 25 | 7 8 15 15 15 15 15 15 15 39 40 40 40 40 40 40 40 34 20 20 20 20 20 21 29 30 23 Most Carried 40 | 6 8 8 11 15 15 15 15 15 21 23 33 40 40 37 38 35 34 20 20 20 20 20 25 30 29 22 Average Carried 21 | 3 7 8 9 13 14 14 14 10 16 21 27 37 39 37 35 34 27 17 19 19 19 19 20 27 25 15 Final Capacity 40 | 8 15 15 15 15 15 15 15 15 40 40 40 40 40 40 40 40 20 20 20 20 20 20 25 30 30 5 Final Carried 39 | 5 8 8 11 15 13 15 15 15 20 22 33 39 37 37 34 35 20 17 20 19 20 20 24 27 22 5 Class Distribution -------------------- 22% | Hauler-Skirmisher 19% | Mutant 16% | Scavenger-Tank 9% | Scavenger-Mutant 7% | Tank 6% | Hauler-Mutant 5% | Scavenger-Skirmisher 4% | Hauler-Tank 3% | Commander-Mutant Dominant Class ---------------- Mutant | -10/Materials Mutant | -10/Mines Gunner | -9/Materials Tank | -9/Mines Mutant | -9/Exiles Scavenger-Skirmisher | -8/Mines Scavenger-Skirmisher | -8/Materials Mutant | -8/Garrison Hauler-Skirmisher | -8/Materials Hauler-Skirmisher | -7/Factory Hauler-Skirmisher | -7/DSF Hauler-Skirmisher | -6/Factory Hauler-Tank | -6/Lower Caves Hauler-Skirmisher | -6/Lower Caves Hauler-Skirmisher | -6/Zion Hauler-Skirmisher | -5/Proximity Caves Hauler-Skirmisher | -5/Factory Mutant | -5/Garrison Scavenger-Mutant | -5/Extension Scavenger-Tank | -5/Cetus Scavenger-Tank | -5/Archives Scavenger-Tank | -5/Hub_04(d) Scavenger-Tank | -4/Factory Scavenger-Tank | -4/Garrison Hauler-Mutant | -4/Factory Hauler-Mutant | -3/Research Resources | -11 -10 -10 -9 -9 -9 -8 -8 -8 -8 -7 -7 -6 -6 -6 -6 -5 -5 -5 -5 -5 -5 -5 -4 -4 -4 -3 ----------- Run | Yrd Mat Min Mat Min Exi Min Mat Gar Mat Fac DSF Fac Low Low Zio Pro Fac Gar Ext Cet Arc Hub Fac Gar Fac Res Matter Collected 7139 | 306 203 . 462 324 104 129 153 325 694 . 405 25 356 151 126 146 . 508 546 503 116 377 158 474 225 323 Remotely . | . . . . . . . . . . . . . . . . . . . . . . . . . . . Salvage Created 6745 | 48 342 . 671 354 . 39 153 204 556 . 367 25 188 62 . 175 . 556 577 166 291 229 107 1236 232 167 Parts 337 | 11 22 . 53 30 . 6 8 11 18 . 18 2 5 5 . 7 . 28 20 8 8 13 1 48 8 7 Haulers Intercepted 1 | . . . . . . . . . 1 . . . . . . . . . . . . . . . . . Recyclers Shooed 4 | 1 . . . . . . 1 . 2 . . . . . . . . . . . . . . . . . Parts Field Recycled . | . . . . . . . . . . . . . . . . . . . . . . . . . . . Retrieved Matter . | . . . . . . . . . . . . . . . . . . . . . . . . . . . Parts Self-Destructed 19 | . . . . . . . . . . . . . 4 6 . 9 . . . . . . . . . . Prevented 3 | . . . . . . . . . . . . . 1 1 . 1 . . . . . . . . . . Kills | -11 -10 -10 -9 -9 -9 -8 -8 -8 -8 -7 -7 -6 -6 -6 -6 -5 -5 -5 -5 -5 -5 -5 -4 -4 -4 -3 ------- Run | Yrd Mat Min Mat Min Exi Min Mat Gar Mat Fac DSF Fac Low Low Zio Pro Fac Gar Ext Cet Arc Hub Fac Gar Fac Res Combat Hostiles Destroyed 155 | . 10 . 19 17 . 3 3 10 9 . 11 1 3 1 . 2 . 22 8 2 3 3 2 13 8 5 Melee 10 | . . . . . . . . . . . . 1 . . . . . 1 8 . . . . . . . Guns 92 | . 10 . 19 17 . 3 3 1 7 . 4 . 3 1 . 1 . 2 . 2 3 3 2 1 7 3 Cannons 7 | . . . . . . . . . 1 . . . . . . 1 . 5 . . . . . . . . AOE 44 | . . . . . . . . 9 1 . 6 . . . . . . 13 . . . . . 12 1 2 Classes Destroyed 17 | 1 4 . 2 1 . . 1 . 2 . 1 1 1 . . 1 . . . . . . . 1 . 1 Worker 3 | . . . . 1 . . . . 2 . . . . . . . . . . . . . . . . . Builder 1 | . . . . . . . . . . . . . . . . . . . . . . . . . . 1 Tunneler 3 | 3 . . . . . . . . . . . . . . . . . . . . . . . . . . Hauler 1 | . . . . . . . . . 1 . . . . . . . . . . . . . . . . . Recycler 2 | . 1 . . . . . . . 1 . . . . . . . . . . . . . . . . . Watcher 4 | . 1 . 1 . . . . . . . . . . . . . . . . 1 . 1 . . . . Swarmer 64 | . 6 . 8 14 . 3 . 4 . . . . . . . . . 13 . . . . . 10 3 3 Grunt 48 | . 4 . 7 3 . . 1 6 6 . 7 . 2 . . 2 . 4 4 . . . . 2 . . Brawler 4 | . . . 2 . . . . . 1 . 1 . . . . . . . . . . . . . . . Duelist 1 | . . . . . . . . . . . . . 1 . . . . . . . . . . . . . Sentry 14 | . . . 2 . . . 1 . . . . . . 1 . . . . 4 . 3 1 . . 1 1 Specialist 3 | . . . . . . . . . 1 . 2 . . . . . . . . . . . . . . . Hunter 8 | . . . . . . . 1 . 1 . . . . . . . . 5 . . . 1 . . . . Programmer 9 | . . . . . . . . . . . . 1 . . . . . . . . . 1 2 . 4 1 Heavy 1 | . . . . . . . . . . . 1 . . . . . . . . . . . . . . . Behemoth 1 | . . . . . . . . . . . . . . . . . . . . . . . . 1 . . Cetus Guard 2 | . . . . . . . . . . . . . . . . . . . . 2 . . . . . . Enhanced Grunt 2 | . . . . . . . . . . . . . . . . . . . . . . . . 2 . . Thug 2 | . . . . . . . . . . . . . . . . . . 1 . . . . . 1 . . Mutant 1 | . . . . . . . . . . . . . . . . 1 . . . . . . . . . . Best Kill Streak 14 | 1 4 . 12 4 . 2 1 4 5 . 6 1 3 1 . 1 . 14 2 3 3 2 1 9 4 5 Combat Bots Only 14 | . 3 . 11 4 . 2 1 4 3 . 6 1 3 1 . 1 . 14 2 2 3 1 1 9 4 4 Max Kills in Single Turn 5 | 1 2 . 2 2 . 2 1 4 3 . 2 1 1 1 . 2 . 3 1 1 1 1 1 5 1 2 Gunslinging 1 | . 1 . 1 1 . 1 . . . . . . . . . . . . . . . . . . . . Exploded 5 | . . . . . . . . 4 1 . 2 . . . . . . 3 . . . . . 5 1 2 Melee 1 | . . . . . . . . . . . . 1 . . . . . 1 1 . . . . . . . Uniques/NPCs Destroyed . | . . . . . . . . . . . . . . . . . . . . . . . . . . . Combat | -11 -10 -10 -9 -9 -9 -8 -8 -8 -8 -7 -7 -6 -6 -6 -6 -5 -5 -5 -5 -5 -5 -5 -4 -4 -4 -3 -------- Run | Yrd Mat Min Mat Min Exi Min Mat Gar Mat Fac DSF Fac Low Low Zio Pro Fac Gar Ext Cet Arc Hub Fac Gar Fac Res Hostile Shots Fired 1606 | . 44 . 76 103 . 30 30 100 111 . 69 8 25 6 . 13 . 255 119 25 20 51 13 100 126 282 Missed 449 | . 13 . 25 33 . 13 6 23 29 . 20 1 12 2 . 3 . 58 35 4 6 15 5 11 35 100 Hits 1157 | . 31 . 51 70 . 17 24 77 82 . 49 7 13 4 . 10 . 197 84 21 14 36 8 89 91 182 Melee 11 | . . . 6 . . . . . 5 . . . . . . . . . . . . . . . . . Projectile 1146 | . 31 . 45 70 . 17 24 77 77 . 49 7 13 4 . 10 . 197 84 21 14 36 8 89 91 182 Critical Strikes 48 | . 2 . 2 . . . 1 6 6 . 3 . . . . . . 2 3 6 1 . . 6 4 6 Part Disruptions 3 | . . . . . . . . . . . . . . . . . . . . . . . . . 1 2 Damage Taken 21880 | . 291 . 647 618 . 137 375 1286 1289 . 1211 105 246 22 . 221 . 2815 2029 575 409 389 206 2314 2355 4340 Core 3438 | . 41 . 101 76 . 60 49 329 135 . 100 . 58 . . 19 . 241 375 56 28 37 . 77 339 1317 Absorbed by Shields 770 | . . . . . . . . . . . . . . . . . . . 84 37 . 338 201 110 . . Reduced by Siege Mode 113 | . . . . . . . . . . . . . . . . . . . . . . . . 113 . . Ignored by Resistances 617 | . . . . . . . . . . . . . . . . . . 617 . . . . . . . . Regen/Repaired (Parts) 243 | . . . . . . . . . . . . 94 . . 149 . . . . . . . . . . . Core Remaining (%) 61 | 100 . 83 . . . 40 . . 6 . 85 . . . . 90 . . . . . 26 . . 63 . Volleys Fired 457 | 9 29 . 48 38 . 13 17 31 49 . 40 1 12 1 . 5 2 38 1 10 6 18 11 30 26 22 Largest 4 | 2 2 . 3 3 . 3 4 4 4 . 4 1 2 4 . 4 1 3 1 4 4 3 4 4 1 2 Hottest 283 | 40 46 . 69 69 . 60 80 86 112 . 112 55 110 168 . 180 48 158 55 130 185 105 136 140 240 283 Shots Fired 1115 | 18 58 . 143 96 . 39 68 59 122 . 93 1 24 4 . 17 2 65 3 37 19 51 44 93 26 33 Gun 997 | 18 58 . 143 96 . 39 68 46 118 . 75 1 24 4 . 12 . 16 3 37 19 51 44 80 19 26 Cannon 37 | . . . . . . . . . 4 . . . . . . 5 2 26 . . . . . . . . Launcher 80 | . . . . . . . . 12 . . 18 . . . . . . 23 . . . . . 13 7 7 Special 1 | . . . . . . . . 1 . . . . . . . . . . . . . . . . . . Kinetic 941 | 18 58 . 143 96 . 39 68 41 113 . 75 . 12 2 . 10 2 34 . 37 18 51 44 80 . . Thermal 57 | . . . . . . . . 6 5 . . . . . . . . . . . 1 . . . 19 26 Explosive 79 | . . . . . . . . 11 . . 18 . . . . . . 23 . . . . . 13 7 7 Electromagnetic 38 | . . . . . . . . 1 4 . . 1 12 2 . 7 . 8 3 . . . . . . . Robot Hit Streak 23 | 6 5 . 16 7 . 4 12 6 10 . 7 1 7 3 . 4 . 5 1 10 5 5 10 23 5 10 Robot Miss Streak 11 | 4 4 . 5 5 . 11 6 3 4 . 5 . 2 1 . 3 . 2 1 2 1 4 4 4 3 2 Penetration Max 1 | . . . . . . . . . 1 . 1 . . . . . . . . 1 . 1 . 1 . . Secondary Targets 20 | . 3 . 5 4 . 1 . 1 3 . . . . . . . . . . 1 . . 1 . . 1 Max Gunslinging Chain 1 | . 1 . 1 1 . 1 . 1 1 . . . . . . . . . . 1 . . 1 . . 1 Shots Hit Robots 704 | 9 32 . 89 53 . 11 48 30 74 . 56 1 16 3 . 9 . 37 47 26 13 24 28 61 15 22 Core Hits 360 | 6 15 . 29 24 . 5 12 23 27 . 25 1 8 2 . 8 . 34 18 12 7 11 8 57 14 14 Critical Kills 15 | . . . . 1 . . . . . . . . . . . . . 1 . 1 2 2 1 7 . . Critical Parts Destroyed 20 | . . . . . . . 1 . 2 . . . . . . . . . . . . 2 9 6 . . Critical Strikes 50 | . . . . 1 . . 1 . 2 . . . . . . 1 . 2 7 2 3 4 10 17 . . Destroy 41 | . . . . 1 . . 1 . 2 . . . . . . . . 1 . 2 3 4 10 17 . . Blast 1 | . . . . . . . . . . . . . . . . 1 . . . . . . . . . . Sever 6 | . . . . . . . . . . . . . . . . . . . 6 . . . . . . . Impale 2 | . . . . . . . . . . . . . . . . . . 1 1 . . . . . . . Melee Attacks 74 | . . . . . . . . . . . . . 1 . . . . 12 60 1 . . . . . . Impact . | . . . . . . . . . . . . . . . . . . . . . . . . . . . Slashing 45 | . . . . . . . . . . . . . . . . . . . 44 1 . . . . . . Piercing 29 | . . . . . . . . . . . . . 1 . . . . 12 16 . . . . . . . Sneak Attacks 3 | . . . . . . . . . . . . . . . . . . . 3 . . . . . . . Combat Hostiles 2 | . . . . . . . . . . . . . . . . . . . 2 . . . . . . . Follow-up Attacks 14 | . . . . . . . . . . . . . . . . . . . 14 . . . . . . . Damage Inflicted 20897 | 95 476 . 1269 717 . 82 348 1039 1699 . 2084 24 425 55 . 815 . 2262 1909 732 318 660 457 2833 1003 1595 Guns 10781 | 95 476 . 1269 717 . 82 348 271 1349 . 1025 21 365 55 . 168 . 288 16 732 318 660 457 1037 353 679 Cannons 621 | . . . . . . . . . 87 . . . . . . 112 . 422 . . . . . . . . Explosions 7568 | . . . . . . . . 768 263 . 1059 . 60 . . 535 . 1526 . . . . . 1796 650 911 Melee 1919 | . . . . . . . . . . . . . . . . . . 26 1893 . . . . . . . Ramming 8 | . . . . . . . . . . . . 3 . . . . . . . . . . . . . 5 Kinetic 9786 | 95 476 . 1269 717 . 82 348 271 1289 . 1025 . 221 38 . 184 . 567 . 732 318 660 457 1037 . . Thermal 2022 | . . . . . . . . 72 323 . . . 60 . . 535 . . . . . . . . 353 679 Explosive 6565 | . . . . . . . . 623 . . 1059 . . . . . . 1526 . . . . . 1796 650 911 Electromagnetic 597 | . . . . . . . . 73 87 . . 21 144 17 . 96 . 143 16 . . . . . . . Impact . | . . . . . . . . . . . . . . . . . . . . . . . . . . . Slashing 1543 | . . . . . . . . . . . . . . . . . . . 1543 . . . . . . . Piercing 376 | . . . . . . . . . . . . . . . . . . 26 350 . . . . . . . Highest Corruption 28 | . . . 9 9 9 9 . 5 8 . . 1 1 1 1 . . 11 12 27 27 28 . . 11 25 Average Corruption 10 | . . . 8 9 9 9 . 5 6 . . 1 1 1 1 . . 10 11 18 27 27 . . 8 19 Corruption Purged . | . . . . . . . . . . . . . . . . . . . . . . . . . . . Corruption Blocked . | . . . . . . . . . . . . . . . . . . . . . . . . . . . Effects 271 | . . . 10 27 14 18 . 9 21 . . 2 3 1 1 . . 12 61 33 5 34 . . 11 9 Message Errors 73 | . . . 3 3 2 4 . 6 5 . . . . . . . . 3 21 13 3 3 . . 3 4 Matter Fused 69 | . . . 3 9 7 5 . 1 3 . . 1 1 . . . . 5 11 6 2 10 . . 4 1 Heat Flow Errors 30 | . . . 1 3 . 3 . 1 6 . . . 1 . . . . . 7 2 . 5 . . 1 . Energy Discharges 29 | . . . 1 3 2 2 . . 3 . . 1 . . . . . 1 9 4 . 3 . . . . Parts Rejected 2 | . . . . . . . . . . . . . . . . . . 1 . . . . . . 1 . Parts Fused 2 | . . . . 1 . . . . . . . . . . . . . . . 1 . . . . . . Data Loss (minor) 35 | . . . . 6 2 3 . 1 2 . . . 1 1 1 . . . 7 2 . 6 . . 1 2 Data Loss (major) 9 | . . . . 1 1 1 . . . . . . . . . . . 1 1 . . 4 . . . . Misfires 7 | . . . 1 . . . . . 1 . . . . . . . . . 3 2 . . . . . . Alerts 5 | . . . . . . . . . . . . . . . . . . . 1 2 . 1 . . 1 . Misdirections 3 | . . . . . . . . . . . . . . . . . . 1 . . . . . . . 2 Weapon Failures 7 | . . . 1 1 . . . . 1 . . . . . . . . . 1 1 . 2 . . . . Overload Shots 3 | . . . . . . . . . . . . . . . . . . . . . . . . . 1 2 Overflow Damage 540 | . . . . . . . . 3 19 . 19 . . . . 48 . 146 105 . . . . 94 37 69 Projectiles 8 | . . . . . . . . . . . . . . . . 8 . . . . . . . . . . Explosions 427 | . . . . . . . . 3 19 . 19 . . . . 40 . 146 . . . . . 94 37 69 Melee 105 | . . . . . . . . . . . . . . . . . . . 105 . . . . . . . Knockbacks 6 | . . . . . . . . . . . . . . . . . . 6 . . . . . . . . Impact . | . . . . . . . . . . . . . . . . . . . . . . . . . . . Kinetic 6 | . . . . . . . . . . . . . . . . . . 6 . . . . . . . . Secondary . | . . . . . . . . . . . . . . . . . . . . . . . . . . . Self-Inflicted Damage 1175 | . . . . . . . . 115 . . 23 . . . . 11 . 118 . . . . . 188 520 200 Shots 34 | . . . . . . . . 6 . . 2 . . . . 1 . 5 . . . . . 8 9 3 Rammed 1 | . . . . . . . . . . . . . . . . . . . . . . . . . . 1 Targets Rammed 2 | . . . . . . . . . . . . 1 . . . . . . . . . . . . . 1 Kicked . | . . . . . . . . . . . . . . . . . . . . . . . . . . . Crushed 1 | . . . . . . . . . . . . 1 . . . . . . . . . . . . . . Highest Temperature 449 | . 4 . 199 264 . 295 112 244 449 . 130 . 252 93 . 120 4 393 268 310 152 439 352 325 154 336 Average Temperature 119 | . 2 . 29 101 . 85 47 70 140 . 53 . 121 50 . 62 2 196 91 132 86 153 126 155 79 201 Received Heat Transfer 4052 | . 63 . 147 84 . . 108 747 657 . 261 . 117 . . 99 . 225 815 9 72 36 4 292 117 199 Effects 20 | . . . . . . . . . 9 . . . . . . . . 8 . 1 . 2 . . . . Shutdowns 4 | . . . . . . . . . . . . . . . . . . 2 . . . 2 . . . . Energy Bleed 2 | . . . . . . . . . 1 . . . . . . . . . . 1 . . . . . . Interference 11 | . . . . . . . . . 7 . . . . . . . . 4 . . . . . . . . Short Circuit 2 | . . . . . . . . . 1 . . . . . . . . 1 . . . . . . . . Damage (minor) 1 | . . . . . . . . . . . . . . . . . . 1 . . . . . . . . Siege Activations 1 | . . . . . . . . . . . . . . . . . . . . . . . . 1 . . Total Turns 24 | . . . . . . . . . . . . . . . . . . . . . . . . 24 . . Longest Duration 24 | . . . . . . . . . . . . . . . . . . . . . . . . 24 . . Martial Activations . | . . . . . . . . . . . . . . . . . . . . . . . . . . . Shielding Activations . | . . . . . . . . . . . . . . . . . . . . . . . . . . . Robots Disrupted . | . . . . . . . . . . . . . . . . . . . . . . . . . . . Combat Hostiles . | . . . . . . . . . . . . . . . . . . . . . . . . . . . Robots Corrupted 1 | . . . . . . . . . . . . . . . . . . 1 . . . . . . . . Combat Hostiles 1 | . . . . . . . . . . . . . . . . . . 1 . . . . . . . . Parts Fried 4 | . . . . . . . . . . . . . 2 . . . . . . . . . . 2 . . Impact Corruptions . | . . . . . . . . . . . . . . . . . . . . . . . . . . . Robots Melted . | . . . . . . . . . . . . . . . . . . . . . . . . . . . Combat Hostiles . | . . . . . . . . . . . . . . . . . . . . . . . . . . . Parts Melted 2 | . . . . . . . . . . . . . . . . . . . 2 . . . . . . . Heat Transferred 2034 | . . . . . . . . 50 398 . . . 50 . . 400 . . . . . . . . 407 729 Parts Sabotaged . | . . . . . . . . . . . . . . . . . . . . . . . . . . . Parts Stolen . | . . . . . . . . . . . . . . . . . . . . . . . . . . . Parts Stripped . | . . . . . . . . . . . . . . . . . . . . . . . . . . . Power Chain Reactions 3 | . . . . . . . . 1 . . . . 1 . . 1 . . . . . . . . . . Alert | -11 -10 -10 -9 -9 -9 -8 -8 -8 -8 -7 -7 -6 -6 -6 -6 -5 -5 -5 -5 -5 -5 -5 -4 -4 -4 -3 ------- Run | Yrd Mat Min Mat Min Exi Min Mat Gar Mat Fac DSF Fac Low Low Zio Pro Fac Gar Ext Cet Arc Hub Fac Gar Fac Res Maximum Alert Level 3 | . . . 1 1 . . . 2 2 . 1 1 . . . . . 3 2 1 . 1 2 3 2 1 Low Security (%) 48 | 100 100 100 74 80 . 100 100 12 1 100 63 96 . . . . 100 27 8 57 100 72 67 . 3 97 Level 1 36 | . . . 25 19 . . . 48 96 . 36 3 . . . . . 4 63 42 . 27 29 62 84 2 Level 2 12 | . . . . . . . . 39 2 . . . . . . . . 38 28 . . . 2 12 12 . Level 3 3 | . . . . . . . . . . . . . . . . . . 29 . . . . . 25 . . Level 4 . | . . . . . . . . . . . . . . . . . . . . . . . . . . . Level 5 . | . . . . . . . . . . . . . . . . . . . . . . . . . . . High Security . | . . . . . . . . . . . . . . . . . . . . . . . . . . . Max Security . | . . . . . . . . . . . . . . . . . . . . . . . . . . . Sterilizations 1 | . . . . . . . . . . . 1 . . . . . . . . . . . . . . . Peak Influence 905 | 5 144 27 312 229 . 85 35 609 406 169 382 200 . . . . 4 905 514 310 166 273 403 721 420 207 Initial 474 | . . 27 . 109 . . . 3 296 169 107 200 . . . . . . 474 273 31 44 123 276 378 207 Average 234 | . 63 13 153 164 . 24 12 320 291 160 206 78 . . . . . 481 355 193 121 95 136 479 312 100 Influence Increases 8228 | 15 255 . 542 425 . 115 95 739 427 5 325 30 70 20 . 201 4 1175 964 319 155 471 588 554 432 302 Destroy 0b10 Robot/C 4500 | . 200 . 380 340 . 60 60 380 240 . 220 20 60 20 . 140 . 660 540 160 80 200 160 320 160 100 Destroy 0b10 Robot/NC 140 | 15 10 . 5 5 . . . . 20 . . . . . . . . . 20 10 . 10 10 30 . 5 Destroy Leader 670 | . 42 . 82 50 . 10 20 10 72 . 30 10 10 . . 20 . 40 42 . . 72 60 30 40 30 Allied During Kill 847 | . . . . . . . . 21 8 . . . . . . 41 . 104 273 109 12 100 114 65 . . Successful Hack 82 | . . . 14 . . . . 16 . 5 . . . . . . . 14 12 . . 7 14 . . . Disable Machine 525 | . . . 15 . . . . 30 60 . . . . . . . . 15 30 30 45 30 120 15 120 15 Anti-Garrison Action 300 | . . . . . . . . 200 . . . . . . . . . 50 . . . . . 50 . . Destroy Structure 819 | . 3 . 1 . . . . 52 27 . 75 . . . . . 4 187 32 10 18 52 110 44 112 92 Partial Spotted 15 | . . . . . . . . . . . . . . . . . . . 15 . . . . . . . Lose Combat Pursuer 330 | . . . 45 30 . 45 15 30 . . . . . . . . . 105 . . . . . . . 60 Influence Decreases 8141 | 15 185 70 262 567 138 115 90 135 663 224 97 412 70 10 10 201 4 270 1380 730 107 343 447 229 756 611 Entered New Map 2667 | . . 43 . 171 138 . . 2 313 204 47 182 . . 10 . . . 431 216 47 82 131 119 342 189 Time Decay 3896 | 15 185 27 212 356 . 115 80 . 310 20 . 230 70 10 . 131 4 . 559 334 60 226 316 . 334 302 Lost Part 873 | . . . 50 40 . . 10 93 20 . 50 . . . . 10 . 150 150 . . 10 . 90 80 120 Lost Ally 705 | . . . . . . . . 40 20 . . . . . . 60 . 120 240 180 . 25 . 20 . . Squads Dispatched 28 | . 1 . 2 . . . . . 4 1 1 3 . . . . . . 1 . . 5 2 . 3 5 Investigation 5 | . . . . . . . . . 2 1 . 1 . . . . . . . . . 1 . . . . Extermination 8 | . . . . . . . . . . . . 1 . . . . . . . . . 1 2 . 2 2 Reinforcement 14 | . 1 . 2 . . . . . 2 . 1 1 . . . . . . 1 . . 2 . . 1 3 Assault . | . . . . . . . . . . . . . . . . . . . . . . . . . . . Garrison 1 | . . . . . . . . . . . . . . . . . . . . . . 1 . . . . Intercept . | . . . . . . . . . . . . . . . . . . . . . . . . . . . Searches Triggered . | . . . . . . . . . . . . . . . . . . . . . . . . . . . Construction Impeded 2 | . . . . . . . . . 1 . . . . . . . . . . . . . . . . 1 Haulers Reinforced . | . . . . . . . . . . . . . . . . . . . . . . . . . . . Active Scanning Responses . | . . . . . . . . . . . . . . . . . . . . . . . . . . . Cargo Convoy Interrupts . | . . . . . . . . . . . . . . . . . . . . . . . . . . . Stealth | -11 -10 -10 -9 -9 -9 -8 -8 -8 -8 -7 -7 -6 -6 -6 -6 -5 -5 -5 -5 -5 -5 -5 -4 -4 -4 -3 --------- Run | Yrd Mat Min Mat Min Exi Min Mat Gar Mat Fac DSF Fac Low Low Zio Pro Fac Gar Ext Cet Arc Hub Fac Gar Fac Res Distress Signals 15 | . 2 . 2 . . . 2 . 2 . . . . . . . . . 1 2 . . . . . 4 Communications Jammed . | . . . . . . . . . . . . . . . . . . . . . . . . . . . Distress Signals . | . . . . . . . . . . . . . . . . . . . . . . . . . . . Times Spotted 298 | . 17 . 26 18 . 7 10 16 18 . 11 1 3 1 . 7 . 40 29 9 4 12 9 19 13 28 Peak Tracking Total 14 | . 4 . 6 4 . 4 7 4 5 . 4 1 3 1 . 4 . 14 4 5 2 3 2 9 3 10 Tactical Retreats 14 | . . . 2 1 . 2 1 2 . . . . . . . . . 4 . . . . . . . 2 Traps | -11 -10 -10 -9 -9 -9 -8 -8 -8 -8 -7 -7 -6 -6 -6 -6 -5 -5 -5 -5 -5 -5 -5 -4 -4 -4 -3 ------- Run | Yrd Mat Min Mat Min Exi Min Mat Gar Mat Fac DSF Fac Low Low Zio Pro Fac Gar Ext Cet Arc Hub Fac Gar Fac Res Traps Triggered 12 | . . . . . . . . 3 1 . 1 . . . . . . 3 1 . . 1 1 1 . . Indirectly . | . . . . . . . . . . . . . . . . . . . . . . . . . . . Trap Hack Attempts . | . . . . . . . . . . . . . . . . . . . . . . . . . . . Triggered . | . . . . . . . . . . . . . . . . . . . . . . . . . . . Disarmed . | . . . . . . . . . . . . . . . . . . . . . . . . . . . Reprogrammed . | . . . . . . . . . . . . . . . . . . . . . . . . . . . Reused . | . . . . . . . . . . . . . . . . . . . . . . . . . . . Traps Extracted . | . . . . . . . . . . . . . . . . . . . . . . . . . . . Installed . | . . . . . . . . . . . . . . . . . . . . . . . . . . . Triggered . | . . . . . . . . . . . . . . . . . . . . . . . . . . . Machines | -11 -10 -10 -9 -9 -9 -8 -8 -8 -8 -7 -7 -6 -6 -6 -6 -5 -5 -5 -5 -5 -5 -5 -4 -4 -4 -3 ---------- Run | Yrd Mat Min Mat Min Exi Min Mat Gar Mat Fac DSF Fac Low Low Zio Pro Fac Gar Ext Cet Arc Hub Fac Gar Fac Res Machines Disabled 40 | . . . 1 . . . . 4 4 . 1 . . . . . . 2 2 2 3 2 8 2 8 1 Max in Single Turn 4 | . . . 1 . . . . 1 1 . 1 . . . . . . 1 . 1 1 1 4 1 4 1 Garrison Access 1 | . . . . . . . . . . . . . . . . . . . . . . 1 . . . . Garrison Relay 5 | . . . . . . . . 2 . . . . . . . . . 2 . . . . . 1 . . Machines Repaired . | . . . . . . . . . . . . . . . . . . . . . . . . . . . Machines Dismantled 4 | . . . . . . . . 1 1 . . . . . . . . . . 1 . . . 1 . . Machines Sabotaged . | . . . . . . . . . . . . . . . . . . . . . . . . . . . Overloaded Fab Kills . | . . . . . . . . . . . . . . . . . . . . . . . . . . . Hacking | -11 -10 -10 -9 -9 -9 -8 -8 -8 -8 -7 -7 -6 -6 -6 -6 -5 -5 -5 -5 -5 -5 -5 -4 -4 -4 -3 --------- Run | Yrd Mat Min Mat Min Exi Min Mat Gar Mat Fac DSF Fac Low Low Zio Pro Fac Gar Ext Cet Arc Hub Fac Gar Fac Res Machines Accessed 29 | . 2 1 1 . 2 . 1 1 1 2 . 3 . . 1 . 1 1 4 1 . 2 3 . 1 1 Terminals 15 | . 2 . 1 . . . . 1 1 2 . 2 . . . . . 1 3 1 . 1 . . . . Fabricators 1 | . . . . . . . . . . . . . . . . . . . . . . . 1 . . . Repair Stations 1 | . . . . . . . . . . . . 1 . . . . . . . . . . . . . . Recycling Units 3 | . . . . . . . . . . . . . . . . . . . 1 . . . 1 . 1 . Scanalyzers . | . . . . . . . . . . . . . . . . . . . . . . . . . . . Garrison Access 5 | . . . . . . . 1 . . . . . . . . . 1 . . . . 1 1 . . 1 Total Hacks 60 | . 7 1 4 . 3 . 1 1 2 3 . 5 . . 6 . 1 1 13 3 . 3 4 . 1 1 Successful 33 | . 3 1 3 . 3 . 1 1 . 1 . 1 . . 6 . 1 1 4 . . 3 3 . 1 . Failed 27 | . 4 . 1 . . . . . 2 2 . 4 . . . . . . 9 3 . . 1 . . 1 Catastrophic 3 | . . . . . . . . . . . . 1 . . . . . . 1 . . . . . . 1 Database Lockouts . | . . . . . . . . . . . . . . . . . . . . . . . . . . . Manual 18 | . 5 . 4 . 1 . . . 1 2 . 3 . . . . . . . 1 . 1 . . . . Terminals 36 | . 7 . 4 . . . . 1 2 3 . 3 . . . . . 1 10 3 . 2 . . . . Fabricators 1 | . . . . . . . . . . . . . . . . . . . . . . . 1 . . . Repair Stations 2 | . . . . . . . . . . . . 2 . . . . . . . . . . . . . . Recycling Units 6 | . . . . . . . . . . . . . . . . . . . 3 . . . 2 . 1 . Scanalyzers . | . . . . . . . . . . . . . . . . . . . . . . . . . . . Garrison Access 5 | . . . . . . . 1 . . . . . . . . . 1 . . . . 1 1 . . 1 Terminal Hacks 21 | . 1 1 2 . 3 . . 1 . 1 . . . . 6 . . 1 3 . . 2 . . . . Record 2 | . . . . . 2 . . . . . . . . . . . . . . . . . . . . . Part Schematic 6 | . . . . . . . . . . . . . . . 6 . . . . . . . . . . . Open Door 4 | . . 1 . . . . . . . . . . . . . . . . 3 . . . . . . . Open DSF 1 | . . . . . . . . . . 1 . . . . . . . . . . . . . . . . Branch Access Points 1 | . . . 1 . . . . . . . . . . . . . . . . . . . . . . . Emergency Access Points 1 | . . . . . . . . . . . . . . . . . . 1 . . . . . . . . Locate Traps 1 | . . . . . . . . . . . . . . . . . . . . . . 1 . . . . Registered Components 1 | . . . . . . . . . . . . . . . . . . . . . . 1 . . . . Zone Layout 2 | . 1 . 1 . . . . . . . . . . . . . . . . . . . . . . . Security Stations 1 | . . . . . . . . 1 . . . . . . . . . . . . . . . . . . Proto ID Catalog 1 | . . . . . 1 . . . . . . . . . . . . . . . . . . . . . Fabricator Hacks 1 | . . . . . . . . . . . . . . . . . . . . . . . 1 . . . Build 1 | . . . . . . . . . . . . . . . . . . . . . . . 1 . . . Repair Station Hacks . | . . . . . . . . . . . . . . . . . . . . . . . . . . . Recycling Unit Hacks 3 | . . . . . . . . . . . . . . . . . . . 1 . . . 1 . 1 . Report Inventory 3 | . . . . . . . . . . . . . . . . . . . 1 . . . 1 . 1 . Scanalyzer . | . . . . . . . . . . . . . . . . . . . . . . . . . . . Garrison Access Hacks 4 | . . . . . . . 1 . . . . . . . . . 1 . . . . 1 1 . . . Unlock Access 3 | . . . . . . . 1 . . . . . . . . . 1 . . . . . 1 . . . Seal Access 1 | . . . . . . . . . . . . . . . . . . . . . . 1 . . . . Unauthorized Hacks 4 | . 2 . 1 . . . . . . . . 1 . . . . . . . . . . . . . . Terminals 3 | . 2 . 1 . . . . . . . . . . . . . . . . . . . . . . . Botnet 3 | . 2 . 1 . . . . . . . . . . . . . . . . . . . . . . . Fabricators . | . . . . . . . . . . . . . . . . . . . . . . . . . . . Repair Stations 1 | . . . . . . . . . . . . 1 . . . . . . . . . . . . . . Patch 1 | . . . . . . . . . . . . 1 . . . . . . . . . . . . . . Recycling Units . | . . . . . . . . . . . . . . . . . . . . . . . . . . . Scanalyzers . | . . . . . . . . . . . . . . . . . . . . . . . . . . . Garrison Access . | . . . . . . . . . . . . . . . . . . . . . . . . . . . Data Cores Recovered 2 | . . . . . . . . . . . . . . . . . . . 1 . . . 1 . . . Used . | . . . . . . . . . . . . . . . . . . . . . . . . . . . Hacking Detections 16 | . 2 . 1 . . . . . 1 1 . 2 . . . . . 1 2 1 . 1 2 . 1 1 Full Trace Events 3 | . 1 . . . . . . . 1 1 . . . . . . . . . . . . . . . . Feedback Events . | . . . . . . . . . . . . . . . . . . . . . . . . . . . Feedback Blocked . | . . . . . . . . . . . . . . . . . . . . . . . . . . . Robot Schematics Acquired 3 | . . . . . . . . . . . . . . . 3 . . . . . . . . . . . Robots Built . | . . . . . . . . . . . . . . . . . . . . . . . . . . . Authchips . | . . . . . . . . . . . . . . . . . . . . . . . . . . . Time . | . . . . . . . . . . . . . . . . . . . . . . . . . . . Total Robot Build Rating . | . . . . . . . . . . . . . . . . . . . . . . . . . . . Part Schematics Acquired 19 | . . . . . . . . . . . . . . . 19 . . . . . . . . . . . Parts Built 2 | . . . . . . . . . . . . . . . . . . . . . . . 2 . . . Authchips . | . . . . . . . . . . . . . . . . . . . . . . . . . . . Time 64 | . . . . . . . . . . . . . . . . . . . . . . . 64 . . . Total Part Build Rating 16 | . . . . . . . . . . . . . . . . . . . . . . . 16 . . . Parts Repaired . | . . . . . . . . . . . . . . . . . . . . . . . . . . . Time . | . . . . . . . . . . . . . . . . . . . . . . . . . . . Parts Recycled . | . . . . . . . . . . . . . . . . . . . . . . . . . . . Recycled Matter . | . . . . . . . . . . . . . . . . . . . . . . . . . . . Retrieved Matter . | . . . . . . . . . . . . . . . . . . . . . . . . . . . Retrieved Components . | . . . . . . . . . . . . . . . . . . . . . . . . . . . Parts Scanalyzed . | . . . . . . . . . . . . . . . . . . . . . . . . . . . Part Schematics Acquired . | . . . . . . . . . . . . . . . . . . . . . . . . . . . Parts Damaged . | . . . . . . . . . . . . . . . . . . . . . . . . . . . Bothacking | -11 -10 -10 -9 -9 -9 -8 -8 -8 -8 -7 -7 -6 -6 -6 -6 -5 -5 -5 -5 -5 -5 -5 -4 -4 -4 -3 ------------ Run | Yrd Mat Min Mat Min Exi Min Mat Gar Mat Fac DSF Fac Low Low Zio Pro Fac Gar Ext Cet Arc Hub Fac Gar Fac Res Used RIF Installer . | . . . . . . . . . . . . . . . . . . . . . . . . . . . Robots Hacked . | . . . . . . . . . . . . . . . . . . . . . . . . . . . Non-combat . | . . . . . . . . . . . . . . . . . . . . . . . . . . . Combat . | . . . . . . . . . . . . . . . . . . . . . . . . . . . Robot Hacks Applied . | . . . . . . . . . . . . . . . . . . . . . . . . . . . Relay Couplers Released 17 | . . . . . . . . 7 . . . . . . . . . 7 . . . . . 3 . . Machine Destruction 17 | . . . . . . . . 7 . . . . . . . . . 7 . . . . . 3 . . Fabnet Peak Effective % . | . . . . . . . . . . . . . . . . . . . . . . . . . . . Robots Rewired 33 | . . . . . . . . 3 . . . . . . . . . 6 24 . . . . . . . Allies Hacked . | . . . . . . . . . . . . . . . . . . . . . . . . . . . Hacks Repelled . | . . . . . . . . . . . . . . . . . . . . . . . . . . . Allies | -11 -10 -10 -9 -9 -9 -8 -8 -8 -8 -7 -7 -6 -6 -6 -6 -5 -5 -5 -5 -5 -5 -5 -4 -4 -4 -3 -------- Run | Yrd Mat Min Mat Min Exi Min Mat Gar Mat Fac DSF Fac Low Low Zio Pro Fac Gar Ext Cet Arc Hub Fac Gar Fac Res Total Allies 46 | . . . . . . . . 3 . . . . . . 5 . . 6 28 . . 2 . 2 . . Largest Group 15 | . . . . . . . . 2 1 . . . . . 5 4 1 6 15 15 3 2 2 2 . . Highest-Rated Group 552 | . . . . . . . . 51 20 . . . . . 139 104 31 180 552 552 213 192 192 192 . . Highest-Rated Ally 159 | . . . . . . . . 31 20 . . . . . 32 31 31 31 159 159 143 96 96 96 . . Initial Warlord ECA Mod 183 | . . . . . . . . . 4 3 3 12 12 12 12 11 11 10 12 12 12 12 11 11 12 11 Warlord Squad Rendezvous 4 | . . . . . . . . . . . . . . . . . 1 . . . . . . . . 3 Dakka 1 | . . . . . . . . . . . . . . . . . . . . . . . . . . 1 Infantry 1 | . . . . . . . . . . . . . . . . . 1 . . . . . . . . . Ranger 1 | . . . . . . . . . . . . . . . . . . . . . . . . . . 1 Chimera 1 | . . . . . . . . . . . . . . . . . . . . . . . . . . 1 Total Orders 8 | . . . . . . . . . . . . . . . . . . . 5 . . 1 1 . 1 . RETURN 8 | . . . . . . . . . . . . . . . . . . . 5 . . 1 1 . 1 . Ally Attacks 468 | . . . . . . . . 33 8 . . . . . . 53 . 44 179 67 11 19 38 16 . . Total Damage 11351 | . . . . . . . . 643 306 . . . . . . 841 . 1205 3708 1517 239 800 1570 522 . . Kills 82 | . . . . . . . . 9 3 . . . . . . 5 . 11 24 10 1 8 8 3 . . Allies Corrupted 1 | . . . . . . . . . . . . . . . . . . . 1 . . . . . . . Allies Melted 2 | . . . . . . . . . . . . . . . . . . 1 1 . . . . . . . Intel | -11 -10 -10 -9 -9 -9 -8 -8 -8 -8 -7 -7 -6 -6 -6 -6 -5 -5 -5 -5 -5 -5 -5 -4 -4 -4 -3 ------- Run | Yrd Mat Min Mat Min Exi Min Mat Gar Mat Fac DSF Fac Low Low Zio Pro Fac Gar Ext Cet Arc Hub Fac Gar Fac Res Active Infowar (turns) 3274 | 25 541 71 220 . 199 52 2 . . . 1 . 72 376 1251 368 96 . . . . . . . . . Sensors 2416 | . . . . . 199 52 2 . . . . . 72 376 1251 368 96 . . . . . . . . . Terrain 1 | . . . . . . . . . . . 1 . . . . . . . . . . . . . . . Seismic 857 | 25 541 71 220 . . . . . . . . . . . . . . . . . . . . . . . Robot Analysis Total . | . . . . . . . . . . . . . . . . . . . . . . . . . . . Derelict Logs Recovered 7 | . . 1 . 1 . . . . . . . . 1 1 2 1 . . . . . . . . . . Drone Launches 8 | . . . . . . . . . . . . . . . . . . . 5 . . 1 1 . 1 . Drone Recoveries 8 | . . . . . . . . . . . . . . . . . . . 5 . . 1 1 . 1 . Exploration | -11 -10 -10 -9 -9 -9 -8 -8 -8 -8 -7 -7 -6 -6 -6 -6 -5 -5 -5 -5 -5 -5 -5 -4 -4 -4 -3 ------------- Run | Yrd Mat Min Mat Min Exi Min Mat Gar Mat Fac DSF Fac Low Low Zio Pro Fac Gar Ext Cet Arc Hub Fac Gar Fac Res Turns Passed 16246 | 217 541 71 466 810 439 485 225 1348 681 51 399 569 742 376 1251 368 148 909 1655 747 124 653 728 822 749 672 Spaces Moved 7921 | 117 261 45 177 410 271 281 56 483 291 28 147 311 414 226 742 206 68 512 651 354 57 335 376 296 278 528 Core 373 | 13 . . . . . . . 54 . . . . . . . . . . . . . . . . . 306 Treads 6181 | 104 261 45 177 410 271 281 47 . 128 28 134 311 414 226 742 206 68 134 276 354 57 335 376 296 278 222 Legs 1208 | . . . . . . . . 401 140 . 13 . . . . . . 279 375 . . . . . . . Wheels 136 | . . . . . . . 9 28 . . . . . . . . . 99 . . . . . . . . Hover 23 | . . . . . . . . . 23 . . . . . . . . . . . . . . . . . Flight . | . . . . . . . . . . . . . . . . . . . . . . . . . . . Fastest Speed 50 | 50 160 160 160 160 160 160 105 105 56 165 165 165 165 165 165 165 165 120 120 160 160 160 160 160 160 50 Average Speed 163 | 147 160 160 160 160 160 160 168 234 151 165 171 173 165 165 165 165 165 136 141 160 160 160 160 224 217 96 Slowest Speed 500 | 160 160 160 160 160 160 160 240 500 250 165 250 250 165 165 165 165 165 260 190 240 160 160 160 240 240 255 Overloaded Moves . | . . . . . . . . . . . . . . . . . . . . . . . . . . . Propulsion Burnouts . | . . . . . . . . . . . . . . . . . . . . . . . . . . . Robots Hopped . | . . . . . . . . . . . . . . . . . . . . . . . . . . . Potential Cave-ins . | . . . . . . . . . . . . . . . . . . . . . . . . . . . Cave-ins Triggered . | . . . . . . . . . . . . . . . . . . . . . . . . . . . Exploration Rate (%) 41 | 7 48 17 27 81 65 81 8 46 27 1 95 8 55 47 79 47 2 66 75 71 67 31 17 26 13 17 Regions Visited 26 Branch Regions 12 Pre-discovered Areas 4 | . . . . 1 1 . . . . . . . 1 . . 1 . . . . . . . . . . Known Exits Taken 15 | . . . 1 . . . 1 . 1 1 . . 1 1 1 1 1 . 1 1 1 1 1 . 1 . Unknown Exits Taken 7 | 1 1 1 . 1 1 1 . . . . . 1 . . . . . . . . . . . . . . Scrap Searched 9 | . . . . 1 . 1 . . . . . . 2 2 2 1 . . . . . . . . . . Spaces Dug 14 | . . . . . . . . . . . . . 1 . . . 2 1 . . . . . . 10 . Terrain Destroyed 568 | . . . . . . . . 37 23 . 157 . 11 . . 13 2 96 . 2 7 19 51 29 72 49 Melee 2 | . . . . . . . . . . . . . 1 . . . . 1 . . . . . . . . Projectile 49 | . . . . . . . . . . . . . 1 . . . 2 1 . 2 7 19 8 6 1 2 AOE 514 | . . . . . . . . 37 22 . 156 . 9 . . 13 . 94 . . . . 43 22 71 47 Terrain Rammed . | . . . . . . . . . . . . . . . . . . . . . . . . . . . Walls Destroyed . | . . . . . . . . . . . . . . . . . . . . . . . . . . . Machines Disabled . | . . . . . . . . . . . . . . . . . . . . . . . . . . . Actions | -11 -10 -10 -9 -9 -9 -8 -8 -8 -8 -7 -7 -6 -6 -6 -6 -5 -5 -5 -5 -5 -5 -5 -4 -4 -4 -3 --------- Run | Yrd Mat Min Mat Min Exi Min Mat Gar Mat Fac DSF Fac Low Low Zio Pro Fac Gar Ext Cet Arc Hub Fac Gar Fac Res Total 10354 | 145 330 44 252 488 278 296 157 646 440 33 225 343 447 227 770 223 107 656 1329 494 77 423 485 378 400 661 Wait 822 | . 26 . 7 22 . . 71 22 33 . 1 1 . . 11 12 2 3 260 56 7 47 82 5 76 78 Move 7894 | 116 260 44 176 409 270 280 56 481 290 27 146 310 413 225 741 205 67 509 650 353 56 334 376 295 277 528 Hop . | . . . . . . . . . . . . . . . . . . . . . . . . . . . Pick Up 221 | 12 6 . 11 8 2 1 2 14 27 4 24 15 4 . 5 1 4 8 22 18 3 6 4 14 4 2 Fast Attach 34 | . . . . . . . 2 . . . . 2 3 . . . 2 . 14 6 . 2 . 1 . 2 Attach 165 | 7 . . 6 4 4 1 1 18 17 1 8 3 2 . 2 . 7 15 23 11 . 2 4 7 9 13 Detach 51 | . . . . 3 . 1 1 5 5 . . 2 1 . 1 . 2 4 11 2 . . 4 . 4 5 Swap 72 | 1 3 . 2 . . . 4 . 5 . 3 1 6 . 4 . 5 2 7 10 2 7 2 8 . . Drop 134 | . 6 . 2 4 2 . 3 1 10 1 3 7 5 . 6 . 16 . 15 19 3 7 2 8 4 10 Fire 457 | 9 29 . 48 38 . 13 17 31 49 . 40 1 12 1 . 5 2 38 1 10 6 18 11 30 26 22 Melee 57 | . . . . . . . . . . . . . 1 . . . . 12 43 1 . . . . . . Ram 1 | . . . . . . . . . . . . . . . . . . . . . . . . . . 1 Kick . | . . . . . . . . . . . . . . . . . . . . . . . . . . . Crush 1 | . . . . . . . . . . . . 1 . . . . . . . . . . . . . . Escape Stasis 32 | . . . . . . . . 15 . . . . . . . . . 10 5 . . . . 2 . . Rewire 385 | . . . . . . . . 51 . . . . . 1 . . . 55 278 . . . . . . . Trap . | . . . . . . . . . . . . . . . . . . . . . . . . . . . Miscellaneous 28 | . . . . . . . . 8 4 . . . . . . . . . . 8 . . . 8 . . Route ------- -11/Scrapyard -10/Materials (discovered 2 exits: *Mat / *Min) -10/Mines -9/Materials (discovered 2 exits: *Min x2) -9/Mines (discovered 2 exits: *Mat / *Exi) -9/Exiles -8/Mines -8/Materials (discovered 2 exits: Fac / Gar) -8/Garrison (discovered 2 exits: *Mat x2) -8/Materials -7/Factory -7/DSF -6/Factory -6/Lower Caves -6/Lower Caves -6/Zion -5/Proximity Caves -5/Factory (discovered 3 exits: Fac / Ext / Gar) -5/Garrison (discovered 3 exits: *Ext x3) -5/Extension (discovered 3 exits: *Fac x2 / *Cet) -5/Cetus (discovered 2 exits: *Fac / *Arc) -5/Archives (discovered 2 exits: *Hub x2) -5/Hub_04(d) -4/Factory -4/Garrison -4/Factory -3/Research History --------- Turn | Location | Event 5 | -11/Scrapyard | Discovered new exit (range 14) 218 | -11/Scrapyard | Entered Materials 314 | -10/Materials | Build established: Mutant 524 | -10/Materials | Discovered new exit (range 14) 678 | -10/Materials | Discovered new exit (range 12) 759 | -10/Materials | Entered Mines 762 | -10/Mines | Met a Derelict who couldn't figure out how to use a Trap Extractor 769 | -10/Mines | Discovered new exit (range 10) 791 | -10/Mines | Learned Materials terminal intel 830 | -10/Mines | Entered Materials 830 | -9/Materials | Evolved 2 slots: Utility x1, Weapon x1 831 | -9/Materials | Loaded intel: 12 terminal locations 909 | -9/Materials | Identified exit to Mines 1105 | -9/Materials | Lost 4 parts (1p2u1w) 1235 | -9/Materials | Destroyed 11 combat bots 1296 | -9/Materials | Entered Mines 1441 | -9/Mines | Discovered new exit (range 11) 1604 | -9/Mines | Learned location of Storage (-7) 1662 | -9/Mines | Build established: Tank 1781 | -9/Mines | Found a hidden stash of uninstalled traps 1844 | -9/Mines | Received a Rocket Launcher from a helpful Derelict 1960 | -9/Mines | Found a damaged Exp. Sensor Array with a note attached 1964 | -9/Mines | Found Prototype Device 2067 | -9/Mines | Lost 3 parts (2n1w) 2069 | -9/Mines | Learned 2 Materials zone layouts 2098 | -9/Mines | Deemed a non-threat by the Exiles lab entrance 2098 | -9/Mines | Discovered new exit (range 5) 2106 | -9/Mines | Entered Exiles 2145 | -9/Exiles | Met 8R-AWN 2172 | -9/Exiles | Met EX-HEX 2276 | -9/Exiles | Met EX-BIN 2295 | -9/Exiles | Aligned with FarCom system 2297 | -9/Exiles | Given EX-Vault access code 2334 | -9/Exiles | Opened EX-Vault 2346 | -9/Exiles | Identified Exp. Sensor Array 2347 | -9/Exiles | Found Lightpack 2.0 2378 | -9/Exiles | Warned to stay clear of 0b10 Research branches 2405 | -9/Exiles | Build established: Mutant 2421 | -9/Exiles | Met EX-DEC 2433 | -9/Exiles | Learned location of Zion (-6) 2529 | -9/Exiles | Discovered new exit (range 12) 2545 | -9/Exiles | Left Exiles lab with Lightpack 2.0 2545 | -9/Exiles | Entered Mines 2737 | -8/Mines | Core integrity fell below 50% 2790 | -8/Mines | Build established: Scavenger-Skirmisher 2976 | -8/Mines | Found a Scrap Suit stashed away for nefarious purposes 2996 | -8/Mines | Found Scrap Suit 3013 | -8/Mines | Discovered new exit (range 11) 3030 | -8/Mines | Entered Materials 3030 | -8/Materials | Evolved 2 slots: Utility x1, Weapon x1 3031 | -8/Materials | Identified exit to Factory 3255 | -8/Materials | Identified exit to Garrison 3255 | -8/Materials | Entered Garrison 3285 | -8/Garrison | Triggered checkpoint 3352 | -8/Garrison | Lost 9 parts (3n1u5w) 3535 | -8/Garrison | Triggered checkpoint 3594 | -8/Garrison | Build established: Mutant 3833 | -8/Garrison | Core integrity fell below 50% 3867 | -8/Garrison | Lost 3 parts (1p2w) 3987 | -8/Garrison | Discovered new exit (range 8) 4027 | -8/Garrison | Triggered checkpoint 4035 | -8/Garrison | Learned Materials security intel 4066 | -8/Garrison | Garrison Relay disabled 4171 | -8/Garrison | Attempted to access garrison exit controls, blocked by remote lockdown 4331 | -8/Garrison | Triggered checkpoint 4448 | -8/Garrison | Discovered new exit (range 10) 4513 | -8/Garrison | Triggered checkpoint 4603 | -8/Garrison | Entered Materials 4603 | -8/Materials | Accompanied by 1 ally 4917 | -8/Materials | Core integrity fell below 20% 5279 | -8/Materials | Discovered exit to Factory (range 3) 5283 | -8/Materials | Build established: Hauler-Skirmisher 5284 | -8/Materials | Entered Factory 5284 | -7/Factory | Evolved 2 slots: Propulsion x1, Utility x1 5335 | -7/Factory | Identified exit to DSF 5335 | -7/Factory | Entered DSF 5421 | -7/DSF | Additional patrols routed to DSF 5458 | -7/DSF | Lost 4 parts (2n2w) 5618 | -7/DSF | Sterilization system engaged 5624 | -7/DSF | Discovered new exit (range 14) 5638 | -7/DSF | Ambient heat levels rising (+10) 5653 | -7/DSF | Ambient heat levels rising (+10) 5668 | -7/DSF | Ambient heat levels rising (+10) 5683 | -7/DSF | Ambient heat levels rising (+10) 5698 | -7/DSF | Ambient heat levels rising (+10) 5713 | -7/DSF | Ambient heat levels rising (+10) 5728 | -7/DSF | Ambient heat levels rising (+10) 5734 | -7/DSF | Entered Factory 5734 | -6/Factory | Evolved 2 slots: Propulsion x1, Utility x1 6136 | -6/Factory | Discovered new exit (range 5) 6303 | -6/Factory | Entered Lower Caves 6309 | -6/Lower Caves | Met a Warlord Commander 6310 | -6/Lower Caves | Learned location of Warlord (-5) 6311 | -6/Lower Caves | Warlord Commander delivered Encrypted Comm Array 6315 | -6/Lower Caves | Found Encrypted Comm Array 6588 | -6/Lower Caves | Entered a destroyed Warlord outpost 6623 | -6/Lower Caves | Encountered a Warlord checkpoint 6629 | -6/Lower Caves | Build established: Hauler-Tank 6685 | -6/Lower Caves | Learned Factory emergency access door positions 6958 | -6/Lower Caves | Discovered new exit (range 13) 7023 | -6/Lower Caves | Found Alien Artifact 7023 | -6/Lower Caves | Identified Core Expander 7023 | -6/Lower Caves | Installed Core Expander, added new Utility slot 7043 | -6/Lower Caves | Identified exit to Lower Caves 7045 | -6/Lower Caves | Entered another Lower Caves area 7093 | -6/Lower Caves | Learned Factory emergency access door positions 7276 | -6/Lower Caves | Build established: Hauler-Skirmisher 7390 | -6/Lower Caves | Attracted the attention of an 0b10 checkpoint 7403 | -6/Lower Caves | Discovered new exit (range 10) 7419 | -6/Lower Caves | Identified exit to Zion 7421 | -6/Lower Caves | Entered Zion 7499 | -6/Zion | System corruption cleaned by Quarantine Array 7605 | -6/Zion | Discovered new exit (range 16) 7617 | -6/Zion | Given A8's code to call for help 7749 | -6/Zion | Given the Hacking Drone Bay 7749 | -6/Zion | Found Prototype Device 8174 | -6/Zion | Learned Factory emergency access door positions 8180 | -6/Zion | Learned Factory security intel 8182 | -6/Zion | Learned location of 2 exits from Factory 8312 | -6/Zion | Identified Hacking Drone Bay 8465 | -6/Zion | Gained Derelict followers 8660 | -6/Zion | Identified exit to Proximity Caves 8672 | -6/Zion | Entered Proximity Caves 8672 | -5/Proximity Caves | Accompanied by 5 allies 8713 | -5/Proximity Caves | Learned location of Armory (-3) 8846 | -5/Proximity Caves | Lost 3 allies 9012 | -5/Proximity Caves | Discovered new exit (range 9) 9031 | -5/Proximity Caves | Identified exit to Factory 9040 | -5/Proximity Caves | Entered Factory 9040 | -5/Factory | Accompanied by 1 ally 9040 | -5/Factory | Evolved 2 slots: Utility x2 9041 | -5/Factory | Identified exit to Factory 9041 | -5/Factory | Identified exit to Extension 9074 | -5/Factory | Joined by Warlord Infantry squad 9132 | -5/Factory | Identified exit to Garrison 9188 | -5/Factory | Entered Garrison 9188 | -5/Garrison | Accompanied by 1 ally 9292 | -5/Garrison | Triggered checkpoint 9417 | -5/Garrison | Triggered checkpoint 9429 | -5/Garrison | Build established: Tank 9442 | -5/Garrison | Triggered checkpoint 9444 | -5/Garrison | Triggered checkpoint 9462 | -5/Garrison | Triggered checkpoint 9504 | -5/Garrison | Lost 13 parts (1p4n4u4w) 9516 | -5/Garrison | Destroyed 14 combat bots 9617 | -5/Garrison | Discovered exit to Extension (range 15) 9662 | -5/Garrison | Triggered checkpoint 9687 | -5/Garrison | System corruption reached 10% 9694 | -5/Garrison | Garrison Relay disabled 9842 | -5/Garrison | Discovered exit to Extension (range 8) 9851 | -5/Garrison | Attempted to access garrison exit controls, blocked by remote lockdown 9906 | -5/Garrison | Lost 4 allies 9943 | -5/Garrison | Attempted to access garrison exit controls, blocked by remote lockdown 10033 | -5/Garrison | Discovered exit to Extension (range 9) 10097 | -5/Garrison | Entered Extension 10171 | -5/Extension | Build established: Mutant 10467 | -5/Extension | Identified exit to Cetus 10904 | -5/Extension | Spotted B-75 Beast 10927 | -5/Extension | Spotted B-75 Beast 10965 | -5/Extension | Core integrity fell below 50% 10966 | -5/Extension | Allies destroyed B-75 Beast 10969 | -5/Extension | Allies destroyed B-75 Beast 10995 | -5/Extension | Lost 5 allies 10998 | -5/Extension | Lost 10 parts (1p7n1u1w) 11131 | -5/Extension | Lost 3 allies 11238 | -5/Extension | Build established: Scavenger-Mutant 11277 | -5/Extension | Rescued A7 11570 | -5/Extension | Rescued a captive Derelict 11601 | -5/Extension | Rescued a captive Derelict 11602 | -5/Extension | Rescued a captive Derelict 11702 | -5/Extension | Build established: Commander-Mutant 11752 | -5/Extension | Entered Cetus 11752 | -5/Cetus | Accompanied by 15 allies (A7) 11757 | -5/Cetus | Acquired a Cetus Manufacturing Module code from A7 11776 | -5/Cetus | Spotted Cetus Guard 11777 | -5/Cetus | Spotted Cetus Guard 11788 | -5/Cetus | Spotted Cetus Guard 11789 | -5/Cetus | Spotted Cetus Guard 11796 | -5/Cetus | Allies destroyed Cetus Guard 11802 | -5/Cetus | Allies destroyed Cetus Guard 11811 | -5/Cetus | Allies destroyed Cetus Guard 11812 | -5/Cetus | Allies destroyed Cetus Guard 11837 | -5/Cetus | Cetus Manufacturing Module disabled 11845 | -5/Cetus | Lost 8 allies 11871 | -5/Cetus | Failed to start Cetus Manufacturing Module 12120 | -5/Cetus | Escorted A7 to Cetus Mainframe 12171 | -5/Cetus | Discovered new exit (range 16) 12204 | -5/Cetus | Spotted Cetus Guard 12204 | -5/Cetus | Spotted Cetus Guard 12209 | -5/Cetus | Spotted Cetus Guard 12209 | -5/Cetus | Spotted Cetus Guard 12216 | -5/Cetus | Allies destroyed Cetus Guard 12221 | -5/Cetus | Allies destroyed Cetus Guard 12228 | -5/Cetus | Destroyed Cetus Guard 12231 | -5/Cetus | Destroyed Cetus Guard 12242 | -5/Cetus | Discovered exit to Factory (range 16) 12252 | -5/Cetus | Met Revision 17 12259 | -5/Cetus | Lost 4 allies 12298 | -5/Cetus | Build established: Scavenger-Tank 12485 | -5/Cetus | Identified exit to Archives 12499 | -5/Cetus | Entered Archives 12499 | -5/Archives | Accompanied by 3 allies (A7) 12504 | -5/Archives | Received a hacking code to weaken MAIN.C 12559 | -5/Archives | Discovered new exit (range 16) 12594 | -5/Archives | Discovered new exit (range 15) 12615 | -5/Archives | Identified exit to Hub_04(d) 12623 | -5/Archives | Entered Hub_04(d) 12623 | -5/Hub_04(d) | Accompanied by 2 allies 12623 | -5/Hub_04(d) | Discovered exit to Factory (range 10) 13005 | -5/Hub_04(d) | Disrupted transfer network 13009 | -5/Hub_04(d) | Enhanced Grunt warped into view, answering call for help 13012 | -5/Hub_04(d) | Enhanced Grunt warped into view, answering call for help 13264 | -5/Hub_04(d) | Garrison activated, responded to threat 13276 | -5/Hub_04(d) | Entered Factory 13276 | -4/Factory | Accompanied by 2 allies 13276 | -4/Factory | Evolved 2 slots: Power x2 13432 | -4/Factory | Fabricated Biometal Medium Treads (x2) 14004 | -4/Factory | Identified exit to Garrison 14004 | -4/Factory | Entered Garrison 14004 | -4/Garrison | Accompanied by 2 allies 14044 | -4/Garrison | Triggered checkpoint 14063 | -4/Garrison | Garrison Relay disabled 14144 | -4/Garrison | Found Prototype Device 14160 | -4/Garrison | Identified Exp. Thermal Shield 14222 | -4/Garrison | Found Corrupted Exp. Thermal Shield 14519 | -4/Garrison | Rescued a captive Derelict 14519 | -4/Garrison | Rescued a captive Derelict 14562 | -4/Garrison | Triggered checkpoint 14563 | -4/Garrison | Spotted B-86 Titan 14568 | -4/Garrison | Triggered checkpoint 14580 | -4/Garrison | Triggered checkpoint 14588 | -4/Garrison | Triggered checkpoint 14594 | -4/Garrison | Destroyed 9 combat bots 14645 | -4/Garrison | Destroyed B-86 Titan 14668 | -4/Garrison | Lost 9 parts (1p3u5w) 14757 | -4/Garrison | Discovered new exit (range 14) 14785 | -4/Garrison | Identified exit to Factory 14826 | -4/Garrison | Entered Factory 14876 | -4/Factory | Build established: Scavenger-Mutant 15270 | -4/Factory | Lost 6 parts (1p1n2u2w) 15440 | -4/Factory | System corruption reached 10% 15493 | -4/Factory | Build established: Hauler-Mutant 15560 | -4/Factory | Discovered new exit (range 7) 15568 | -4/Factory | Identified exit to Research 15575 | -4/Factory | Entered Research 15575 | -3/Research | Evolved 2 slots: Propulsion x2 16056 | -3/Research | System corruption reached 10% 16096 | -3/Research | Lost 7 parts (1p3n3w) 16106 | -3/Research | Spotted B-86 Titan 16138 | -3/Research | Joined by Warlord Ranger squad 16166 | -3/Research | Core integrity fell below 50% 16167 | -3/Research | Joined by Warlord Dakka squad 16209 | -3/Research | Core integrity fell below 20% 16220 | -3/Research | Joined by Warlord Chimera squad 16232 | -3/Research | Lost 6 allies 16247 | -3/Research | Destroyed by G-67 Veteran with Plasma Rifle Last Messages --------------- 16189_ Slug penetrates Wall. 16206_ Knocked back. 16206_ Slug penetrates Wall. 16207_ Penetrated by Slug. 16207_ Slug penetrates H-77 Assassin. 16210_ R-10 Processor collects Corrupted Hvy. Battle Rifle. 16210_ Penetrated by Slug. 16210_ Slug penetrates Wall. A squad of Warlord forces bursts forth from a hidden compartment. 16221_ 6T-ET3(M): "WARLORD FOREVER!" 16224_ OBP5KUEQ=TJWGDW2BNMN%JF>GDN 16228_ ALERT: Potential suspicious activity detected, Programmers report to Research Zone 4S. 16237_ Adv. Hacking Suite destroyed. 16240_ System corrupted: Component data lost. 16244_ Connecting with Garrison Access... Map ----- +----------------------------------------------------+ | ????????????????????????????# # # !! + | | ????????????????????????????# # # !! # | | ????????????????????????????# ######### % # | | ????????????????????????????# ######??# + | | ????????????????????????????# #! #??# """ # | | ????????????????????????????# # #??# """ # | | ????????????????????????????# # #### """ # | | ????????????????????????????# # + + # | | ????????????????????????????# # # # # | | ????????????????????????????# # # ####+#### | | ????????????????????????????# # # | | ????????????????????????????# # ############ | | ????????????????????????????# ######???##?????? | | ????????????????????????????# #?????? #?????? | | ????????????????????????????# #???? #?????? | | ????????????????????????????# #?? #?????? | | ????????????????????????????# # !!! ! #?????? | | ??????????????#?????????????# + ! !!! #?????? | | ??????????????# ???????????# # !! #?????? | | ?????????BB???# ??????????# #?? #?????? | | ?????????BB?### #####+#### #????! #?????? | | ??????????? #??????####?????? | | ??????????? g #???????????????? | | ??????????? #???????????????? | | ?????????????""" #???????????????? | | ?????????????""" @###+#######????????????? | | ?????????????""" # #????????????? | | ???????????? "Y" #/ !#????????????? | | ??????????? """ # ""G"" #????????????? | | ??????????? # " " #????????????? | | ?????????????????? # " " #????????????? | | ????????????????? #= * #????????????? | | ?????????????????##### # #????????????? | | ?????????????????????# #! #????????????? | | ?????????????????????# ## """###????????????? | | ?????????????????????# ?#"" F""#??????????????? | | ?????????????????????# ?#"""""????????????????? | | ?????????????????????# ???""??????????????????? | | ?????????????????????# ???????????????????????? | | ?????????????????????# ???????????????????????? | | ??????????????????????? ???????????????????????? | | ?????????????????????????????????????????????????? | | ?????????????????????????????????????????????????? | | ?????????????????????????????????????????????????? | | ?????????????????????????????????????????????????? | | ?????????????????????????????????????????????????? | | ?????????????????????????????????????????????????? | | ?????????????????????????????????????????????????? | | ?????????????????????????????????????????????????? | | ?????????????????????????????????????????????????? | +----------------------------------------------------+ Best States ------------- Heat Dissipation 92 Energy Generation 59 Energy Capacity 1165 Matter Stores 482 Matter Capacity 500 Sight Range 16 Robot Scan Range 20 Terrain Scan Density 10 Base Temperature (-) 200 Armor Coverage 1050 Resistance: KI 25 Resistance: EM 15 Weapon Cycling 20 Evasion (%) 55 Launcher Accuracy 30 Recoil Reduction 4 Offensive Hacking 14 Defensive Hacking 35 Item Schematics ----------------- Riot Gun | -6/Zion | Free Battle Cannon | -6/Zion | Free Flamer | -6/Zion | Free Beamcaster | -6/Zion | Free Barrage Gun | -6/Zion | Free Arc Thrower | -6/Zion | Free Adv. Melee Analysis Suite | -6/Zion | Archive Adv. Plasma Cannon | -6/Zion | Archive Focal Shield | -6/Zion | Archive Adv. Cooling System | -6/Zion | Archive IFF Parser | -6/Zion | Archive Lrn. Tractor Beam | -6/Zion | Archive Lgt. Antimatter Reactor | -6/Zion | Archive Adv. Actuator Array | -6/Zion | Archive Stasis Canceller | -6/Zion | Archive Hyp. Coil Gun | -6/Zion | Archive Energy Well | -6/Zion | Archive Imp. Shock Absorption System | -6/Zion | Archive Imp. Actuator Array | -6/Zion | Archive Robot Schematics ------------------ G-47 Trooper | -6/Zion | Archive M-22 Extractor | -6/Zion | Archive H-55 Commando | -6/Zion | Archive Fabricated ------------ Biometal Medium Treads | x2 | -4/Factory | Preloaded Repaired ---------- Nothing Alien Tech Used ----------------- Core Expander Achievements -------------- None Challenges ------------ None Game ------ Seed ExplosiveMyomerRecalibrator Manual? 0 Play Time 02:21:47 Cumulative 210.1 hours Start 2025.08.26 @ 21:58:32 End 2025.08.27 @ 20:00:55 Sessions 1 Manual Loads 0 Difficulty Rogue Special Mode None Game No. 316 Rogue 316 Adventurer 0 Explorer 0 Win Type - Total 4 Types 3/0/1/0/0/0/0/0/0/0 Lore% 80 Gallery% 75 Achievement% 56 Wizard Run 0 Options --------- Layout 1 ASCII 0 Keyboard 0 Movement Mouse Keybinds 0 Fullscreen 1 Font 24/Smallcaps Map View 50x40 Zoom Use 0% Tactical HUD 1 Map Filters NONE Filters NONE Steam 1 RUN: b4ad6c7f-e31c-4c3b-ba36-86358d4994e9